Workbook

Sheet Certification
A1: CHARTER SCHOOL UNAUDITED ACTUALS
A2: FINANCIAL REPORT -- ALTERNATIVE FORM
A3: July 1, 2020 to June 30, 2021
A5: CHARTER SCHOOL CERTIFICATION
J7: Charter School Name: | K7: Literacy First Charter Schools
J8: CDS #: | K8: 37103716119119
J9: Charter Approving Entity: | K9: San Diego County Office of Education
J10: County: | K10: San Diego
J11: Charter #: | K11: 405
E13: NOTE: An Alternative Form submitted to the California Department of Education will not be considered a valid submission if the following information is missing:
E14: For information regarding this report, please contact:
E16: For County Fiscal Contact: | I16: For Approving Entity: | O16: For Charter School:
E17: Roxanna Travers | I17: Kristin Armatis | O17: Steve Robinson
E18: Name | I18: Name | O18: Name
E19: Sr. Manager Financial Accounting | I19: Senior Director, Charter Schools | O19: Chief Business Officer
E20: Title | I20: Title | O20: Title
E21: 858-295-6700 | I21: 858-295-6665 | O21: 619-316-5839
E22: Telephone | I22: Telephone | O22: Telephone
E23: roxanna.travers@sdcoe.net | I23: kristin.armatis@sdcoe.net | O23: steve.robinson@lfcsinc.org
E24: Email address | I24: Email address | O24: Email address
E26: To the entity that approved the charter school:
A27: ( | B27: X | C27: ) | E27: 2020-21 CHARTER SCHOOL UNAUDITED ACTUALS FINANCIAL REPORT -- ALTERNATIVE FORM: This report
E28: has been approved, and is hereby filed by the charter school pursuant to Education Code Section 42100(b).
E29: Signed: | L29: Date:
F30: Charter School Official
F31: (Original signature required)
E32: Printed Name: | L32: Title:
E34: To the County Superintendent of Schools:
A35: ( | B35: X | C35: ) | E35: 2020-21 CHARTER SCHOOL UNAUDITED ACTUALS FINANCIAL REPORT -- ALTERNATIVE FORM: This report
E36: is hereby filed with the County Superintendent pursuant to Education Code Section 42100(a).
E37: Signed: | L37: Date:
F38: Authorized Representative of Charter Approving Entity
F39: (Original signature required)
E40: Printed Name: | L40: Title:
E42: To the Superintendent of Public Instruction:
A43: ( | B43: X | C43: ) | E43: 2020-21 CHARTER SCHOOL UNAUDITED ACTUALS FINANCIAL REPORT -- ALTERNATIVE FORM: This report has been
E44: verified for mathematical accuracy by the County Superintendent of Schools pursuant to Education Code Section 42100(a).
E45: Signed: | L45: Date:
F46: County Superintendent/Designee
F47: (Original signature required)
X54: Version | Y54: 2004.1

Sheet Alternative Form
A1: c1 | B1: c2 | C1: c3 | D1: 4 | E1: objcode | F1: unrestr | G1: restr | H1: ttl
A2: CHARTER SCHOOL UNAUDITED ACTUALS
A3: FINANCIAL REPORT -- ALTERNATIVE FORM
A4: July 1, 2020 to June 30, 2021
A6: Charter School Name: | E6: =Certification!K7 -> Literacy First Charter Schools
A7: CDS #: | E7: =Certification!K8 -> 37103716119119
A8: Charter Approving Entity: | E8: =Certification!K9 -> San Diego County Office of Education
A9: County: | E9: =Certification!K10 -> San Diego
A10: Charter #: | E10: =Certification!K11 -> 405
B11: This charter school uses the following basis of accounting:
B12: (Please enter an "X" in the applicable box below; check only one box)
B13: X | C13: Accrual Basis (Applicable Capital Assets/Interest on Long-Term Debt/Long-Term Liabilities/Net Position objects are 6900, 7438,
D14: 9400-9489, 9660-9669, 9796, and 9797)
C15: Modified Accrual Basis (Applicable Capital Outlay/Debt Service/Fund Balance objects are 6100-6170, 6200-6500, 7438, 7439,
D16: and 9711-9789)
D18: Description | E18: Object Code | F18: Unrestricted | G18: Restricted | H18: Total
A19: A. | B19: REVENUES
B20: 1. | C20: LCFF Sources
D21: State Aid - Current Year | E21: 8011 | F21: 6816453 | H21: =SUM(F21) -> 6816453
D22: Education Protection Account State Aid - Current Year | E22: 8012 | F22: =5517613 -> 5517613 | H22: 5517613
D23: State Aid - Prior Years | E23: 8019 | F23: 73110 | H23: 73110
D24: Transfers to Charter Schools in Lieu of Property Taxes | E24: 8096 | F24: 3673523.3 | H24: 3673523.3
D25: Other LCFF Transfers | E25: 8091, 8097 | F25: 0 | G25: 0 | H25: =SUM(F25:G25) -> 0
D26: Total, LCFF Sources | F26: =SUM(F21:F25) -> 16080699.3 | G26: =SUM(G25) -> 0 | H26: 16080699.3
B28: 2. | C28: Federal Revenues (see NOTE in Section L)
D29: No Child Left Behind/Every Student Succeeds Act | E29: 8290 | G29: =23843.94+9151 -> 32994.94 | H29: =SUM(G29) -> 32994.94
D30: Special Education - Federal | E30: 8181, 8182 | G30: 235823 | H30: 235823
D31: Child Nutrition - Federal | E31: 8220 | G31: 0 | H31: 0
D32: Donated Food Commodities | E32: 8221 | G32: 0 | H32: 0
D33: Other Federal Revenues | E33: 8110, 8260-8299 | F33: =2202300 -> 2202300 | G33: =111275+184611+87402+839978 -> 1223266 | H33: =SUM(F33:G33) -> 3425566
D34: Total, Federal Revenues | F34: =SUM(F33) -> 2202300 | G34: =SUM(G29:G33) -> 1492083.94 | H34: 3694383.94
B36: 3. | C36: Other State Revenues
D37: Charter Schools Categorical Block Grant | E37: 8480 | H37: =SUM(F37) -> 0
D38: Special Education - State | E38: StateRevSE | G38: =998696+58713.5 -> 1057409.5 | H38: =SUM(G38) -> 1057409.5
D39: All Other State Revenues | E39: StateRevAO | F39: =37964+6965 -> 44929 | G39: =466188.04-17075.15+737909.16+134880+205331.4+493548.3+54838.7+455038.22 -> 2530658.67 | H39: =SUM(F39:G39) -> 2575587.67
D40: Total, Other State Revenues | F40: =SUM(F37,F39) -> 44929 | G40: =SUM(G38,G39) -> 3588068.17 | H40: 3632997.17
B42: 4. | C42: Other Local Revenues
D43: All Other Local Revenues | E43: LocalRevAO | F43: =51575.53+30.43+7100.3+19929.45+8294+61888.83+270+567+42265.82+4361.5-11282.99+12000+7950.52+151.7+10000+121674.99+27378.63+120.25+2.03 -> 364277.99 | G43: 0 | H43: =SUM(F43:G43) -> 364277.99
D44: Total, Local Revenues | F44: =SUM(F43) -> 364277.99 | G44: 0 | H44: 364277.99
B46: 5. | C46: TOTAL REVENUES | F46: =SUM(F26,F34,F40,F44) -> 18692206.29 | G46: 5080152.11 | H46: =SUM(F46:G46) -> 23772358.4
A48: B. | B48: EXPENDITURES (see NOTE in Section L)
B49: 1. | C49: Certificated Salaries
D50: Certificated Teachers' Salaries | E50: 1100 | F50: =606506.72+1193463.31+4265538.17 -> 6065508.2 | G50: =238448.64+176053.8+427564.38+172475.7+2902.76 -> 1017445.28 | H50: =SUM(F50:G50) -> 7082953.48
D51: Certificated Pupil Support Salaries | E51: 1200 | F51: =95443.71+25463.31 -> 120907.02 | G51: =8968.27+69461.2+161553.11+42223.43 -> 282206.01 | H51: 403113.03
D52: Certificated Supervisors' and Administrators' Salaries | E52: 1300 | F52: =1042512.06+196282.87 -> 1238794.93 | G52: 144861.24 | H52: 1383656.17
D53: Other Certificated Salaries | E53: 1900 | F53: =91522.83+16458.18 -> 107981.01 | G53: 41319.55 | H53: 149300.56
D54: Total, Certificated Salaries | F54: =SUM(F50:F53) -> 7533191.16 | G54: 1485832.08 | H54: 9019023.24
B56: 2. | C56: Noncertificated Salaries
D57: Noncertificated Instructional Salaries | E57: 2100 | F57: =96454.83+181.67 -> 96636.5 | G57: =208179.67+13604.58 -> 221784.25 | H57: =SUM(F57:G57) -> 318420.75
D58: Noncertificated Support Salaries | E58: 2200 | F58: =663562.87+63431.94 -> 726994.81 | G58: =26059.13 -> 26059.13 | H58: 753053.94
D60: Noncertificated Supervisors' and Administrators' Salaries | E60: 2300 | F60: 0 | G60: 0 | H60: =SUM(F60:G60) -> 0
D61: Clerical, Technical and Office Salaries | E61: 2400 | F61: =706048.94+106429.38 -> 812478.32 | G61: 0 | H61: 812478.32
D62: Other Noncertificated Salaries | E62: 2900 | F62: =221038.5+592.32 -> 221630.82 | G62: 0 | H62: 221630.82
D63: Total, Noncertificated Salaries | F63: =SUM(F57:F62) -> 1857740.45 | G63: 247843.38 | H63: 2105583.83
D64: Description | E64: Object Code | F64: Unrestricted | G64: Restricted | H64: Total
B65: 3. | C65: Employee Benefits
D66: STRS | E66: 3101-3102 | F66: 1156053.94 | G66: 192705.43 | H66: =SUM(F66:G66) -> 1348759.37
D67: PERS | E67: 3201-3202 | F67: =278497.93+36625.45+18688.12 -> 333811.5 | G67: =468.25+2575.38+3992.67+82647.15+3277.75+4635.07 -> 97596.27 | H67: 431407.77
D68: OASDI / Medicare / Alternative | E68: 3301-3302 | F68: =175608.35+83951.86 -> 259560.21 | G68: =269.92+5391.03+3706.64+43056.4+1747.16+2148.2+2527.61+41.5+1040.75 -> 59929.21 | H68: 319489.42
D69: Health and Welfare Benefits | E69: 3401-3402 | F69: =324018.48+140093.52+353846.83 -> 817958.83 | G69: =917.11+41925.42+22856.99+96957.95+5814.08+7493.72 -> 175965.27 | H69: 993924.1
D70: Unemployment Insurance | E70: 3501-3502 | F70: =2033.2+801.69+2378.37 -> 5213.26 | G70: =4.48+170.71+88.86+548.81+23.1+14.05+87.3+1.45+6.8 -> 945.56 | H70: 6158.82
D71: Workers' Compensation Insurance | E71: 3601-3602 | F71: =59299.14+81208.47 -> 140507.61 | G71: =136.32+5188.2+2649.99+14891.24+661.06+414.03+2653.2+44.12+206.8 -> 26844.96 | H71: 167352.57
D72: OPEB, Allocated | E72: 3701-3702 | F72: 0 | G72: 0 | H72: 0
D73: OPEB, Active Employees | E73: 3751-3752 | F73: 0 | G73: 0 | H73: 0
D74: Other Employee Benefits | E74: 3901-3902 | F74: =24127.91+48196.09 -> 72324 | G74: =900+1674.7+6965.3+288 -> 9828 | H74: 82152
D75: Total, Employee Benefits | F75: =SUM(F66:F74) -> 2785429.35 | G75: 563814.7 | H75: 3349244.05
B77: 4. | C77: Books and Supplies
D78: Approved Textbooks and Core Curricula Materials | E78: 4100 | F78: =48718.07 -> 48718.07 | G78: =2686.26+1200.48 -> 3886.74 | H78: =SUM(F78:G78) -> 52604.81
D79: Books and Other Reference Materials | E79: 4200 | F79: =55235.45+21.62+77.63+314.26 -> 55648.96 | G79: =14936.92+220.86 -> 15157.78 | H79: 70806.74
D80: Materials and Supplies | E80: 4300 | F80: =246155.29+79.06+43009.01+446.83+3336.4+16905.31+108.02+36928.27 -> 346968.19 | G80: =152947.24+780.44+459.12+15087.52+400672.38+116258.55+23241.96+4411.49+31204.47 -> 745063.17 | H80: 1092031.36
D81: Noncapitalized Equipment | E81: 4400 | F81: =58244.18+64970.1+1224.04 -> 124438.32 | G81: =22143.66+22218.13+20627.79+57236.24+10760.05 -> 132985.87 | H81: 257424.19
D82: Food | E82: 4700 | F82: 0 | G82: 0 | H82: 0
D83: Total, Books and Supplies | F83: =SUM(F78:F82) -> 575773.54 | G83: 897093.56 | H83: 1472867.1
B85: 5. | C85: Services and Other Operating Expenditures
D86: Subagreements for Services | E86: 5100 | F86: 0 | G86: 0 | H86: =SUM(F86:G86) -> 0
D87: Travel and Conferences | E87: 5200 | F87: =36000.59+297+1292.24 -> 37589.83 | G87: =4948.35+40 -> 4988.35 | H87: 42578.18
D88: Dues and Memberships | E88: 5300 | F88: =32150.83+94+1417.52 -> 33662.35 | G88: 275 | H88: 33937.35
D89: Insurance | E89: 5400 | F89: 142774.79 | G89: 0 | H89: 142774.79
D90: Operations and Housekeeping Services | E90: 5500 | F90: =318680.05 -> 318680.05 | G90: 0 | H90: 318680.05
D91: Rentals, Leases, Repairs, and Noncap. Improvements | E91: 5600 | F91: =273257.95+7263.43+464.38+2100+180573.08 -> 463658.84 | G91: =161083.44+2800+104115.88+36789.42+1192947.38+110491.93+2493.09 -> 1610721.14 | H91: 2074379.98
D92: Transfers of Direct Costs | E92: 5700-5799 | F92: 0 | G92: 0 | H92: 0
D93: Professional/Consulting Services and Operating Expend. | E93: 5800 | F93: =733033.93+4160+4851.21+8872.04+75830.93+16058.12 -> 842806.23 | G93: =29414.5+500+1534+238748.7+4.25+2894 -> 273095.45 | H93: 1115901.68
D94: Communications | E94: 5900 | F94: =129406.01+266.65+16829.67 -> 146502.33 | G94: 0 | H94: 146502.33
D95: Total, Services and Other Operating Expenditures | F95: =SUM(F86:F94) -> 1985674.42 | G95: 1889079.94 | H95: 3874754.36
B97: 6. | C97: Capital Outlay
D98: (Objects 6100-6170, 6200-6500 modified accrual basis only)
D99: Land and Land Improvements | E99: 6100-6170 | H99: =SUM(F99:G99) -> 0
D100: Buildings and Improvements of Buildings | E100: 6200 | H100: 0
D101: Books and Media for New School Libraries or Major
D102: Expansion of School Libraries | E102: 6300 | H102: =SUM(F102:G102) -> 0
D103: Equipment | E103: 6400 | H103: 0
D104: Equipment Replacement | E104: 6500 | H104: 0
D105: Depreciation Expense (accrual basis only) | E105: 6900 | F105: 0 | G105: 0 | H105: 0
D106: Total, Capital Outlay | F106: =SUM(F99,F100,F102,F103,F104,F105) -> 0 | G106: 0 | H106: 0
B108: 7. | C108: Other Outgo
D109: Tuition to Other Schools | E109: 7110-7143 | F109: 0 | G109: 0 | H109: =SUM(F109:G109) -> 0
D110: Transfers of Pass-Through Revenues to Other LEAs | E110: 7211-7213 | F110: 0 | G110: 0 | H110: 0
D111: Transfers of Apportionments to Other LEAs - Spec. Ed. | E111: 7221-7223SE | G111: 0 | H111: 0
D112: Transfers of Apportionments to Other LEAs - All Other | E112: 7221-7223AO | F112: 0 | G112: 0 | H112: 0
D113: All Other Transfers | E113: 7281-7299 | F113: 0 | G113: 0 | H113: 0
D114: Transfers of Indirect Costs | E114: 7300-7399 | F114: 0 | G114: 0 | H114: 0
D115: Debt Service:
D116: Interest | E116: 7438 | F116: 0 | G116: 0 | H116: =SUM(F116:G116) -> 0
D117: Principal (for modified accrual basis only) | E117: 7439 | H117: 0
D118: Total Debt Service | F118: =SUM(F116:F117) -> 0 | G118: 0 | H118: 0
D119: Total, Other Outgo | F119: =SUM(F109,F110,F111,F112,F113,F114,F116,F117) -> 0 | G119: 0 | H119: 0
B121: 8. | C121: TOTAL EXPENDITURES | F121: =SUM(F54,F63,F75,F83,F95,F106,F119) -> 14737808.92 | G121: 5083663.66 | H121: =SUM(F121:G121) -> 19821472.58
D122: Description | E122: Object Code | F122: Unrestricted | G122: Restricted | H122: Total
A123: C. | B123: EXCESS (DEFICIENCY) OF REVENUES OVER EXPENDITURES
B124: BEFORE OTHER FINANCING SOURCES AND USES (A5-B8) | F124: =SUM(F46-F121) -> 3954397.37 | G124: -3511.55 | H124: =SUM(F124:G124) -> 3950885.82
A126: D. | B126: OTHER FINANCING SOURCES / USES
B127: 1. | C127: Other Sources | E127: 8930-8979 | F127: 0 | G127: 0 | H127: =SUM(F127:G127) -> 0
B128: 2. | C128: Less: Other Uses | E128: 7630-7699 | F128: 0 | G128: 0 | H128: 0
B129: 3. | C129: Contributions Between Unrestricted and Restricted Accounts | H129: =IF(H130=0,"","(must be zero)") -> 
C130: (must net to zero) | E130: 8980-8999 | F130: -689017.21 | G130: 689017.21 | H130: =SUM(F130:G130) -> 0
B132: 4. | C132: TOTAL OTHER FINANCING SOURCES / USES | F132: =SUM(+F127-F128+F130) -> -689017.21 | G132: 689017.21 | H132: =SUM(F132:G132) -> 0
A134: E. | B134: NET INCREASE (DECREASE) IN FUND BALANCE /NET POSITION (C+D4) | F134: =SUM(F124,F132) -> 3265380.16 | G134: 685505.66 | H134: 3950885.82
A136: F. | B136: FUND BALANCE / NET POSITION
B137: 1. | C137: Beginning Fund Balance/Net Position
C138: a. | D138: As of July 1 | E138: 9791 | F138: 14377097.21 | G138: 575197.3 | H138: =SUM(F138:G138) -> 14952294.51
C139: b. | D139: Adjustments/Restatements | E139: 9793, 9795 | F139: -1262978.3 | G139: 0 | H139: -1262978.3
C140: c. | D140: Adjusted Beginning Fund Balance /Net Position | F140: =SUM(F138,F139) -> 13114118.91 | G140: 575197.3 | H140: 13689316.21
B141: 2. | C141: Ending Fund Balance /Net Position, June 30 (E+F1c) | F141: =SUM(F134,F140) -> 16379499.07 | G141: 1260702.96 | H141: 17640202.03
C142: Components of Ending Fund Balance (Modified Accrual Basis only)
C143: a. | D143: Nonspendable
D144: 1. Revolving Cash (equals Object 9130) | E144: 9711 | H144: =SUM(F144:G144) -> 0
D145: 2. Stores (equals Object 9320) | E145: 9712 | H145: 0
D146: 3. Prepaid Expenditures (equals Object 9330) | E146: 9713 | H146: 0
D147: 4. All Others | E147: 9719 | H147: 0
C148: b. | D148: Restricted | E148: 9740 | H148: 0
C149: c. Committed | D149: Committed
D150: 1. Stabilization Arrangements | E150: 9750 | H150: =SUM(F150:G150) -> 0
D151: 2. Other Commitments | E151: 9760 | H151: 0
C152: d. | D152: Assigned | E152: 9780 | H152: 0
C153: e. | D153: Unassigned/Unappropriated
D154: 1. Reserve for Economic Uncertainties | E154: 9789 | H154: =SUM(F154:G154) -> 0
D155: 2. Unassigned/Unappropriated Amount | E155: 9790M | H155: 0
B157: 3. | C157: Components of Ending Net Position (Accrual Basis only) | F157: =IF(AND(SUM(F177)>0,LEN(TRIM(F2F1Unrestricted)) = 0),"Enter amount for F.3.a","" ) ->  | G157: =IF(AND(SUM(G177)>0,LEN(TRIM(F2F1Restricted)) = 0),"Enter amount for F.3.a","" ) -> 
D158: a. Net Investment in Capital Assets | E158: 9796 | F158: 0 | G158: 0 | H158: =SUM(F158:G158) -> 0
D159: b. Restricted Net Position | E159: 9797 | G159: 1260702.96 | H159: 1260702.96
G160: =IF(F2F3RestrictedSum=0,"",IF(F2F3RestrictedSum<0,"","(must be zero or negative)")) -> 
D161: c. Unrestricted Net Position | E161: 9790A | F161: =F2Unrestricted-F2F1Unrestricted -> 16379499.07 | G161: =F2Restricted - SUM(F2FRestricted) -> 0 | H161: =SUM(F161:G161) -> 16379499.07
D162: Description | E162: Object Code | F162: Unrestricted | G162: Restricted | H162: Total
A163: G. | B163: ASSETS
B164: 1. | C164: Cash
D165: In County Treasury | E165: 9110 | F165: 5989419.18 | G165: -431200.62 | H165: =SUM(F165:G165) -> 5558218.56
D166: Fair Value Adjustment to Cash in County Treasury | E166: 9111 | F166: 0 | G166: 0 | H166: 0
D167: In Banks | E167: 9120 | F167: 271002.68 | G167: 0 | H167: 271002.68
D168: In Revolving Fund | E168: 9130 | F168: 0 | G168: 0 | H168: 0
D169: With Fiscal Agent/Trustee | E169: 9135 | F169: =218651.85+721299.97+750000 -> 1689951.82 | G169: 0 | H169: 1689951.82
D170: Collections Awaiting Deposit | E170: 9140 | F170: 0 | G170: 0 | H170: 0
B171: 2. | C171: Investments | E171: 9150 | F171: 0 | G171: 0 | H171: 0
B172: 3. | C172: Accounts Receivable | E172: 9200 | F172: 1029701.13 | G172: 1547519.83 | H172: 2577220.96
B173: 4. | C173: Due from Grantor Governments | E173: 9290 | F173: 0 | G173: 0 | H173: 0
B174: 5. | C174: Stores | E174: 9320 | F174: 0 | G174: 0 | H174: 0
B175: 6. | C175: Prepaid Expenditures (Expenses) | E175: 9330 | F175: =421711.39+4000+5000+101821.64+25000+5000+1000+688129.65 -> 1251662.68 | G175: 114404.47 | H175: 1366067.15
B176: 7. | C176: Other Current Assets | E176: 9340 | F176: 0 | G176: 0 | H176: 0
B177: 8. | C177: Capital Assets (accrual basis only) | E177: 9400-9489 | F177: 18236104.27 | G177: 302237.89 | H177: 18538342.16
B179: 9. | C179: TOTAL ASSETS | F179: =SUM(F165:F178) -> 28467841.76 | G179: =SUM(G165:G177) -> 1532961.57 | H179: =SUM(F179:G179) -> 30000803.33
A181: H. | B181: DEFERRED OUTFLOWS OF RESOURCES
B182: 1. | C182: Deferred Outflows of Resources | E182: 9490 | F182: 0 | G182: 0 | H182: =SUM(F182:G182) -> 0
B184: 2. | C184: TOTAL DEFERRED OUTFLOWS | F184: =SUM(F182) -> 0 | G184: 0 | H184: =SUM(F184:G184) -> 0
A186: I. | B186: LIABILITIES
B187: 1. | C187: Accounts Payable | E187: 9500 | F187: =273586.38+145828.29+9080.98-9102.58 -> 419393.07 | G187: 147731.6 | H187: =SUM(F187:G187) -> 567124.67
B188: 2. | C188: Due to Grantor Governments | E188: 9590 | F188: 0 | G188: 0 | H188: 0
B189: 3. | C189: Current Loans | E189: 9640 | F189: 0 | G189: 0 | H189: 0
B190: 4. | C190: Unearned Revenue | E190: 9650 | F190: 0 | G190: 124527.01 | H190: 124527.01
B191: 5. | C191: Long-Term Liabilities (accrual basis only) | E191: 9660-9669 | F191: =10426245.98-2079.36+1244783 -> 11668949.62 | G191: 0 | H191: 11668949.62
B193: 6. | C193: TOTAL LIABILITIES | F193: =SUM(F187:F191) -> 12088342.69 | G193: 272258.61 | H193: =SUM(F193:G193) -> 12360601.3
A195: J. | B195: DEFERRED INFLOWS OF RESOURCES
B196: 1. | C196: Deferred Inflows of Resources | E196: 9690 | F196: 0 | G196: 0 | H196: =SUM(F196:G196) -> 0
B198: 2. | C198: TOTAL DEFERRED INFLOWS | F198: =SUM(F196) -> 0 | G198: 0 | H198: =SUM(F198:G198) -> 0
K199: =ROUND(SUM(F202-F141),0) -> 0 | L199: 0
A200: K. | B200: FUND BALANCE /NET POSITION | K200: =IF(ABS(K199)<10.01,0,K199) -> 0 | L200: 0
C201: Ending Fund Balance /Net Position, June 30 (G9 + H2) - (I6 + J2) | F201: =IF(K200=0,"","(must = Line F2)") -> 
C202: (must agree with Line F2) | F202: =SUM((F179+F184) - (F193+F198)) -> 16379499.07 | G202: 1260702.96 | H202: 17640202.03
A204: L. FEDERAL EVERY STUDENT SUCCEEDS ACT (ESSA) MAINTENANCE OF EFFORT REQUIREMENT
A206: NOTE: IF YOUR CHARTER SCHOOL RECEIVED FEDERAL FUNDING, AS REPORTED IN SECTION A2, THE FOLLOWING
D207: ADDITIONAL INFORMATION MUST BE PROVIDED IN ORDER FOR THE CDE TO CALCULATE COMPLIANCE WITH
D208: THE FEDERAL EVERY STUDENT SUCCEEDS ACT (ESSA) MAINTENANCE OF EFFORT REQUIREMENT:
B210: 1. | C210: Federal Revenue Used for Capital Outlay and Debt Service
C211: Included in the Capital Outlay and Debt Service expenditures reported in sections B6 and B7 are
C212: the following amounts paid out of federal funds:
D214: Federal Program Name (If no amounts, indicate "NONE") | F214: Capital Outlay | G214: Debt Service | H214: Total
C216: a. | D216: NONE | E216: $ | F216: 0 | G216: 0 | H216: =SUM(F216,G216) -> 0
C217: b. | H217: 0
C218: c. | H218: 0
C219: d. | H219: 0
C220: e. | H220: 0
C221: f. | H221: 0
C222: g. | H222: 0
C223: h. | H223: 0
C224: i. | H224: 0
C225: j. | H225: 0
D227: TOTAL FEDERAL REVENUES USED FOR CAPITAL OUTLAY AND DEBT SERVICE | F227: =SUM(F216:F225) -> 0 | G227: 0 | H227: =SUM(F227:G227) -> 0
B230: 2. | C230: Community Services Expenditures
C231: Provide the amount of State and Local funds reported in Section B that were expended for Community Services Activities:
G233: Amount
D234: Objects of Expenditures | G234: (Enter "0.00" if none)
C236: a. | D236: Certificated Salaries | E236: 1000-1999 | G236: 0
... 23 more rows

Sheet Data (hidden)
A1: 12345678912345 | B1: 20000 | C1: 30000
A2: 12345678912345 | B2: 256445 | C2: 300
A3: 12345678912345 | B3: 25488 | C3: 1
A4: 12345678912345 | B4: 2500 | C4: 33665

Sheet MACROS (hidden)
B4: Macros must be enabled to use this workbook.
B5: Please close the file and re-open it with macros enabled.
B7: Instructions:
B8: Go to your File tab – Options – Trust Center – Trust Center Settings – Macro Settings – Enable all macros
